fUST/lending_fUST_20250731
["ID","MTS","AMOUNT","RATE_DAILY","PERIOD"]
[376353069,1753948242233,-460.0,0.00019178,2]
[376353071,1753948242242,-460.0,0.00019178,2]
[376353073,1753948242251,-460.0,0.00019178,2]
[376353075,1753948242260,-460.0,0.00019178,2]
[376353077,1753948242269,-460.0,0.00019178,2]
[376353079,1753948242282,-460.0,0.00019178,2]
[376353081,1753948242291,-460.0,0.00019178,2]
[376353083,1753948242300,-460.0,0.00019178,2]
[376353085,1753948242310,-460.0,0.00019178,2]
[376353087,1753948242321,-460.0,0.00019178,2]
[376353089,1753948242332,-460.0,0.00019178,2]
[376353091,1753948242343,-460.0,0.00019178,2]
[376353093,1753948242352,-460.0,0.00019178,2]
[376353095,1753948242361,-460.0,0.00019178,2]
[376353097,1753948242370,-460.0,0.00019178,2]
[376353099,1753948242379,-460.0,0.00019178,2]
[376353101,1753948242388,-460.0,0.00019178,2]
[376353103,1753948242397,-460.0,0.00019178,2]
[376353105,1753948242406,-363.32252723,0.00019178,2]
[376353107,1753948242416,-460.0,0.00019178,2]
[376353109,1753948242425,-460.0,0.00019178,2]
[376353111,1753948242435,-460.0,0.00019178,2]
[376353113,1753948242444,-460.0,0.00019178,2]
[376353115,1753948242453,-465.68,0.00019178,2]
[376353117,1753948242462,-420.8,0.00019178,2]
[376353119,1753948242471,-463.82618521,0.00019178,2]
[376353121,1753948242480,-460.0,0.00019178,2]
[376353123,1753948242489,-318.79,0.00019178,2]
[376353125,1753948242498,-460.0,0.00019178,2]
[376353127,1753948242509,-460.0,0.00019178,2]
[376353129,1753948242519,-460.0,0.00019178,2]
[376353131,1753948242528,-461.39647175,0.00019178,2]
[376353133,1753948242537,-392.99,0.00019178,2]
[376353135,1753948242546,-460.0,0.00019178,2]
[376353137,1753948242556,-460.0,0.00019178,2]
[376353139,1753948242565,-330.59,0.00019178,2]
[376353141,1753948242574,-460.0,0.00019178,2]
[376353143,1753948242586,-460.0,0.00019178,2]
[376353145,1753948242595,-307.41,0.00019178,2]
[376353147,1753948242605,-460.0,0.00019178,2]
[376353149,1753948242615,-460.0,0.00019178,2]
[376353151,1753948242624,-460.0,0.00019178,2]
[376353153,1753948242633,-460.0,0.00019178,2]
[376353155,1753948242642,-460.0,0.00019178,2]
[376353157,1753948242651,-425.35510984,0.00019178,2]
[376353159,1753948242660,-460.0,0.00019178,2]
[376353161,1753948242670,-460.0,0.00019178,2]
[376353163,1753948242679,-460.0,0.00019178,2]
[376353165,1753948242688,-460.0,0.00019178,2]
[376353167,1753948242698,-460.0,0.00019178,2]
[376353169,1753948242707,-460.0,0.00019178,2]
[376353171,1753948242716,-460.0,0.00019178,2]
[376353173,1753948242725,-330.60084364,0.00019178,2]
[376353175,1753948242734,-460.0,0.00019178,2]
[376353177,1753948242745,-460.0,0.00019178,2]
[376353179,1753948242755,-460.0,0.00019178,2]
[376353181,1753948242764,-460.0,0.00019178,2]
[376353183,1753948242773,-460.0,0.00019178,2]
[376353185,1753948242782,-460.0,0.00019178,2]
[376353187,1753948242792,-461.01478333,0.00019178,2]
[376353189,1753948242813,-460.0,0.00019178,2]
[376353191,1753948242824,-460.0,0.00019178,2]
[376353193,1753948242836,-460.0,0.00019178,2]
[376353195,1753948242845,-527.01147993,0.00019178,2]
[376353197,1753948242854,-460.0,0.00019178,2]
[376353199,1753948242862,-460.0,0.00019178,2]
[376353201,1753948242871,-460.96303691,0.00019178,2]
[376353203,1753948242881,-460.0,0.00019178,2]
[376353205,1753948242890,-460.0,0.00019178,2]
[376353207,1753948242900,-460.0,0.00019178,2]
[376353209,1753948242909,-460.0,0.00019178,2]
[376353211,1753948242918,-463.83299166,0.00019178,2]
[376353213,1753948242927,-460.0,0.00019178,2]
[376353214,1753948242936,-460.0,0.00019178,2]
[376353216,1753948242946,-344.16842523,0.00019178,2]
[376353218,1753948242955,-460.0,0.00019178,2]
[376353220,1753948242964,-426.20926104,0.00019178,2]
[376353222,1753948242974,-460.0,0.00019178,2]
[376353225,1753948242983,-460.0,0.00019178,2]
[376353228,1753948242993,-177.62326149,0.00019178,2]
[376353230,1753948243002,-460.0,0.00019178,2]
[376353232,1753948243011,-460.0,0.00019178,2]
[376353234,1753948243020,-460.0,0.00019178,2]
[376353236,1753948243030,-460.0,0.00019178,2]
[376353237,1753948243039,-461.37793776,0.00019178,2]
[376353239,1753948243048,-460.0,0.00019178,2]
[376353241,1753948243057,-460.0,0.00019178,2]
[376353243,1753948243066,-460.0,0.00019178,2]
[376353245,1753948243076,-460.0,0.00019178,2]
[376353247,1753948243088,-460.0,0.00019178,2]
[376353249,1753948243097,-461.22008984,0.00019178,2]
[376353251,1753948243106,-460.0,0.00019178,2]
[376353253,1753948243115,-460.0,0.00019178,2]
[376353256,1753948243125,-460.0,0.00019178,2]
[376353258,1753948243134,-460.0,0.00019178,2]
[376353260,1753948243143,-460.0,0.00019178,2]
[376353262,1753948243153,-377.49007483,0.00019178,2]
[376353264,1753948243162,-460.0,0.00019178,2]
[376353266,1753948243171,-460.0,0.00019178,2]
[376353268,1753948243181,-460.0,0.00019178,2]
[376353270,1753948243190,-460.0,0.00019178,2]
[376353272,1753948243199,-460.0,0.00019178,2]
[376353274,1753948243209,-460.0,0.00019178,2]
[376353276,1753948243218,-460.0,0.00019178,2]
[376353278,1753948243228,-460.0,0.00019178,2]
[376353280,1753948243238,-460.0,0.00019178,2]
[376353282,1753948243247,-460.0,0.00019178,2]
[376353284,1753948243256,-460.0,0.00019178,2]
[376353286,1753948243265,-460.0,0.00019178,2]
[376353288,1753948243275,-381.48883094,0.00019178,2]
[376353290,1753948243284,-461.66310108,0.00019178,2]
[376353292,1753948243294,-460.0,0.00019178,2]
[376353294,1753948243303,-460.0,0.00019178,2]
[376353295,1753948243312,-460.0,0.00019178,2]
[376353296,1753948243322,-460.0,0.00019178,2]
[376353297,1753948243333,-460.0,0.00019178,2]
[376353298,1753948243346,-460.0,0.00019178,2]
[376353299,1753948243356,-183.818179,0.00019178,2]
[376353300,1753948243366,-500.0,0.00019178,2]
[376353301,1753948243375,-666.0,0.00019178,2]
[376353302,1753948243386,-460.0,0.00019452,2]
[376353303,1753948243395,-479.59,0.00019452,2]
[376353304,1753948243406,-460.0,0.00019452,2]
[376353305,1753948243416,-460.0,0.00019452,2]
[376353306,1753948243426,-360.41764094,0.00019452,2]
[376353307,1753948243436,-460.0,0.00019452,2]
[376353308,1753948243446,-460.0,0.00019452,2]
[376353309,1753948243458,-460.0,0.00019452,2]
[376353310,1753948243468,-460.0,0.00019452,2]
[376353311,1753948243477,-460.0,0.00019452,2]
[376353312,1753948243486,-276.68737774,0.00019452,2]
[376353313,1753948243498,-328.47,0.00019452,2]
[376353314,1753948243510,-464.35,0.00019452,2]
[376353316,1753948243520,-460.0,0.00019452,2]
[376353318,1753948243529,-460.0,0.00019452,2]
[376353320,1753948243540,-460.0,0.00019452,2]
[376353322,1753948243549,-460.0,0.00019452,2]
[376353324,1753948243558,-460.0,0.00019452,2]
[376353326,1753948243568,-460.0,0.00019452,2]
[376353328,1753948243578,-460.0,0.00019452,2]
[376353330,1753948243588,-200.0,0.00019454,15]
[376353332,1753948243597,-200.0,0.00019454,15]
[376353334,1753948243606,-200.0,0.00019454,15]
[376353336,1753948243615,-200.0,0.00019454,15]
[376353338,1753948243624,-200.0,0.00019454,15]
[376353341,1753948243633,-200.0,0.00019454,15]
[376353343,1753948243642,-200.0,0.00019454,15]
[376353344,1753948243651,-200.0,0.00019454,15]
[376353347,1753948243662,-460.0,0.00019726,2]
[376353348,1753948243671,-460.0,0.00019726,2]
[376353351,1753948243682,-469.422403,0.00019726,2]
[376353352,1753948243691,-460.0,0.00019726,2]
[376353354,1753948243700,-460.0,0.00019726,2]
[376353356,1753948243711,-460.0,0.00019726,2]
[376353358,1753948243721,-543.93,0.00019726,2]
[376353360,1753948243730,-460.0,0.00019726,2]
[376353363,1753948243740,-2410.61787498,0.000199,2]
[376353364,1753948243750,-460.0,0.0002,2]
[376353366,1753948243760,-460.0,0.0002,2]
[376353368,1753948243770,-460.0,0.0002,2]
[376353371,1753948243779,-153.84219384,0.0002,2]
[376353373,1753948243788,-460.0,0.0002,2]
[376353375,1753948243798,-460.0,0.0002,2]
[376353377,1753948243807,-2410.61787485,0.00020141,2]
[376353379,1753948243816,-195.259887,0.00020187,2]
[376353382,1753948243826,-460.0,0.00020273,2]
[376353384,1753948243836,-376.40262005,0.00020273,2]
[376353386,1753948243845,-460.0,0.00020273,2]
[376353388,1753948243855,-184.0,0.00020273,2]
[376353390,1753948243865,-460.0,0.00020273,2]
[376353392,1753948243874,-347.24860267,0.00020371,2]
[376353394,1753948243884,-2410.61787485,0.00020383,3]
[376353396,1753948243893,-1444.94,0.00020438,3]
[376353398,1753948243902,-722.48,0.00020438,3]
[376353400,1753948243912,-361.24,0.00020438,3]
[376353402,1753948243921,-460.0,0.00020547,2]
[376353404,1753948243931,-460.0,0.00020547,2]
[376353406,1753948243940,-569.91910601,0.00020547,2]
[376353408,1753948243949,-2410.61787485,0.00020624,3]
[376353410,1753948243959,-500.0,0.000207,2]
[376353411,1753948243968,-160.0,0.00020743,2]
[376353414,1753948243978,-460.0,0.00020821,2]
[376353415,1753948243988,-460.0,0.00020821,2]
[376353417,1753948243997,-2410.61787485,0.00020866,4]
[376353420,1753948244007,-500.0,0.00021064,2]
[376353421,1753948244017,-460.0,0.00021095,2]
[376353424,1753948244027,-460.0,0.00021095,2]
[376353425,1753948244036,-2410.61787485,0.00021107,4]
[376353427,1753948244046,-370.8250441,0.00021186,2]
[376353429,1753948244055,-526.848153,0.00021245,2]
[376353443,1753948244171,-12642.0599901,0.00021245,2]
[376353445,1753948244181,-2410.61787485,0.00021348,5]
[376353447,1753948244191,-12642.0599901,0.0002136,3]
[376353449,1753948244200,-200.0,0.00021362,15]
[376353451,1753948244210,-200.0,0.00021362,15]
[376353453,1753948244219,-200.0,0.00021362,15]
[376353455,1753948244229,-200.0,0.00021362,15]
[376353457,1753948244238,-200.0,0.00021362,15]
[376353459,1753948244247,-200.0,0.00021362,15]
[376353461,1753948244259,-200.0,0.00021362,15]
[376353463,1753948244269,-200.0,0.00021362,15]
[376353465,1753948244280,-200.0,0.00021362,15]
[376353467,1753948244290,-200.0,0.00021362,15]
[376353469,1753948244299,-240.0,0.00021362,15]
[376353471,1753948244308,-460.0,0.00021369,2]
[376353473,1753948244318,-460.0,0.00021369,2]
[376353475,1753948244328,-246.3,0.00021441,4]
[376353477,1753948244339,-2146.0,0.00021538,2]
[376353479,1753948244348,-407.0,0.00021538,2]
[376353481,1753948244358,-969.98,0.00021538,2]
[376353483,1753948244367,-635.0,0.00021538,2]
[376353485,1753948244377,-2410.61787485,0.0002159,5]
[376353487,1753948244386,-460.0,0.00021643,2]
[376353489,1753948244395,-460.0,0.00021643,2]
[376353491,1753948244406,-501.13003715,0.0002165,2]
[376353493,1753948244415,-501.96037417,0.0002165,2]
[376353495,1753948244423,-501.70713998,0.0002165,2]
[376353496,1753948244432,-367.895,0.00021713,2]
[376353498,1753948244443,-347.24860267,0.00021764,2]
[376353501,1753948244456,-502.88263805,0.00021767,2]
[376353502,1753948244466,-2410.61787485,0.00021831,6]
[376353504,1753948244475,-246.3,0.00021904,4]
[376353507,1753948244486,-460.0,0.00021917,2]
[376353509,1753948244495,-460.0,0.00021917,2]
[376353511,1753948244504,-505.62665646,0.00021956,2]
[376353513,1753948244513,-501.08598441,0.00021956,2]
[376353515,1753948244522,-500.7912942,0.00021956,2]
[376353517,1753948244532,-280.65641991,0.00021956,2]
[376353519,1753948244541,-500.0,0.00021956,2]
[376353521,1753948244550,-500.0,0.00021956,2]
[376353523,1753948244559,-210.71103877,0.00021956,2]
[376353525,1753948244569,-500.77657956,0.00021956,2]
[376353527,1753948244579,-500.0,0.00021956,2]
[376353529,1753948244588,-500.57306829,0.00021956,2]
[376353531,1753948244598,-500.0,0.00021956,2]
[376353533,1753948244607,-500.0,0.00021956,2]
[376353535,1753948244616,-506.35363636,0.00021956,2]
[376353537,1753948244625,-635.66186887,0.00021999,2]
[376353539,1753948244634,-635.66186887,0.00021999,2]
[376353540,1753948244643,-635.66186887,0.00021999,2]
[376353542,1753948244652,-635.66186887,0.00021999,2]
[376353544,1753948244662,-635.66186887,0.00021999,2]
[376353546,1753948244671,-635.66186887,0.00021999,2]
[376353548,1753948244680,-635.66186887,0.00021999,2]
[376353550,1753948244691,-635.66186887,0.00021999,2]
[376353552,1753948244699,-635.66186887,0.00021999,2]
[376353554,1753948244709,-635.66186887,0.00021999,2]
[376353556,1753948244719,-635.66186887,0.00021999,2]
[376353557,1753948244728,-3724.7,0.00022,7]
[376353558,1753948244737,-304.4,0.00022,2]
[376353559,1753948244746,-165.0,0.00022,2]
[376353560,1753948244755,-2410.61787485,0.00022072,6]
[376353561,1753948244764,-500.0,0.000221,8]
[376353562,1753948244773,-12642.0599901,0.000221,7]
[376353564,1753948244782,-460.0,0.00022191,2]
[376353566,1753948244792,-460.0,0.00022191,2]
[376353567,1753948244801,-2410.61787485,0.00022314,7]
[376353569,1753948244811,-246.3,0.00022367,4]
[376353571,1753948244822,-460.0,0.00022465,2]
[376353574,1753948244832,-460.0,0.00022465,2]
[376353576,1753948244841,-2410.61787485,0.00022555,7]
[376353578,1753948244851,-304.4,0.0002256,2]
[376353580,1753948244860,-2491.96881048,0.00022735,2]
[376353582,1753948244869,-460.0,0.00022739,2]
[376353584,1753948244879,-460.0,0.00022739,2]
[376353586,1753948244887,-150.429748,0.0002275,6]
[376353588,1753948244898,-2410.61787485,0.00022797,7]
[376353590,1753948244908,-246.3,0.0002283,5]
[376353591,1753948244918,-216.18812866,0.00023,3]
[376353593,1753948244927,-934.58,0.00023,2]
[376353596,1753948244938,-526.848153,0.00023,3]
[376353598,1753948244947,-160.0,0.00023,3]
[376353600,1753948244957,-160.0,0.00023,2]
[376353602,1753948244966,-209.6197827,0.00023013,2]
[376353603,1753948244976,-460.0,0.00023013,2]
[376353606,1753948244986,-165.0,0.00023014,7]
[376353607,1753948244995,-2410.61787485,0.00023038,8]
[376353610,1753948245005,-304.4,0.00023121,2]
[376353611,1753948245015,-150.429748,0.00023133,2]
[376353614,1753948245024,-347.24860267,0.00023157,2]
[376353616,1753948245034,-3645.59098928,0.00023232,2]
[376353618,1753948245043,-310.02372696,0.00023232,2]
[376353620,1753948245052,-217.01660887,0.00023232,2]
[376353622,1753948245062,-151.91162621,0.00023232,2]
[376353624,1753948245071,-151.0,0.00023232,2]
[376353625,1753948245080,-203.46046116,0.00023232,2]
[376353627,1753948245089,-168.0,0.00023254,2]
[376353629,1753948245098,-500.0,0.00023256,2]
[376353631,1753948245107,-2410.61787485,0.00023279,8]
[376353633,1753948245117,-500.0,0.00023287,2]
[376353635,1753948245126,-460.0,0.00023287,2]
[376353637,1753948245136,-246.3,0.00023293,5]
[376353640,1753948245146,-150.429748,0.00023428,6]
[376353641,1753948245155,-150.429748,0.00023441,8]
[376353644,1753948245165,-200.0,0.00023457,15]
[376353646,1753948245174,-200.0,0.00023457,15]
[376353647,1753948245183,-200.0,0.00023457,15]
[376353650,1753948245193,-200.0,0.00023457,15]
[376353652,1753948245203,-200.0,0.00023457,15]
[376353654,1753948245213,-200.0,0.00023457,15]
[376353656,1753948245222,-200.0,0.00023457,15]
[376353657,1753948245231,-200.0,0.00023457,15]
[376353660,1753948245240,-200.0,0.00023457,15]
[376353662,1753948245250,-3724.7,0.000235,7]
[376353664,1753948245259,-2410.61787485,0.00023521,9]
[376353666,1753948245268,-200.0,0.00023561,2]
[376353668,1753948245277,-200.0,0.00023561,2]
[376353670,1753948245286,-200.0,0.00023561,2]
[376353672,1753948245296,-200.0,0.00023561,2]
[376353674,1753948245305,-200.0,0.00023561,2]
[376353676,1753948245314,-156.38417752,0.00023561,2]
[376353678,1753948245323,-460.0,0.00023561,2]
[376353680,1753948245332,-500.7810748,0.000236,2]
[376353682,1753948245346,-500.88405749,0.000236,2]
[376353684,1753948245356,-310.940151,0.00023651,2]
[376353686,1753948245365,-150.429748,0.00023681,4]
[376353688,1753948245375,-304.4,0.00023681,2]
[376353690,1753948245384,-548.11,0.00023743,7]
[376353692,1753948245393,-246.3,0.00023756,5]
[376353694,1753948245402,-2410.61787485,0.00023762,9]
[376353696,1753948245411,-150.429748,0.00023772,5]
[376353698,1753948245420,-548.11,0.00023795,7]
[376353700,1753948245430,-460.0,0.00023835,2]
[376353702,1753948245440,-548.11,0.00023843,7]
[376353704,1753948245449,-150.429748,0.00023844,8]
[376353705,1753948245458,-500.0,0.0002385,2]
[376353707,1753948245467,-548.11,0.00023895,7]
[376353709,1753948245476,-837.13758042,0.000239,3]
[376353712,1753948245487,-2508.60799862,0.000239,2]
[376353713,1753948245496,-150.429748,0.00023915,15]
[376353715,1753948245505,-548.11,0.00023943,7]
[376353718,1753948245515,-548.11,0.00023995,7]
[376353720,1753948245524,-231.48161788,0.00024,7]
[376353721,1753948245533,-216.18812866,0.00024,7]
[376353724,1753948245543,-526.848153,0.00024,7]
[376353726,1753948245552,-160.0,0.00024,7]
[376353728,1753948245561,-2410.61787485,0.00024003,10]
[376353730,1753948245571,-548.11,0.00024043,7]
[376353732,1753948245580,-500.0,0.00024073,2]
[376353733,1753948245590,-548.12,0.00024095,7]
[376353735,1753948245599,-150.429748,0.00024106,6]
[376353737,1753948245609,-451.35190172,0.00024109,2]
[376353739,1753948245619,-500.0,0.00024126,2]
[376353741,1753948245628,-500.0,0.00024139,2]
[376353744,1753948245637,-548.11,0.00024143,7]
[376353746,1753948245646,-166.0,0.00024164,7]
[376353748,1753948245656,-500.0,0.00024167,2]
[376353750,1753948245665,-500.0,0.00024191,2]
[376353752,1753948245674,-500.0,0.00024208,2]
[376353754,1753948245683,-150.0,0.00024219,2]
[376353755,1753948245692,-246.3,0.0002422,6]
[376353758,1753948245701,-304.4,0.00024242,2]
[376353760,1753948245710,-548.11,0.00024243,7]
[376353762,1753948245719,-1097.76987834,0.00024245,10]
[376353770,1753948245789,-1173.76831532,0.00024245,10]
[376353773,1753948245801,-139.07968119,0.00024245,10]
[376353775,1753948245810,-150.429748,0.00024247,8]
[376353777,1753948245819,-500.0,0.00024256,2]
[376353779,1753948245828,-150.429748,0.00024266,2]
[376353781,1753948245838,-93.64615652,0.00024269,2]
[376353783,1753948245850,-406.35384348,0.00024269,2]
[376353785,1753948245859,-500.0,0.00024277,2]
[376353787,1753948245868,-94.64614242,0.00024285,2]
[376353789,1753948245879,-405.35385758,0.00024285,2]
[376353791,1753948245888,-17458.21,0.000243,7]
[376353793,1753948245898,-526.848153,0.000243,7]
[376353795,1753948245907,-160.0,0.000243,7]
[376353797,1753948245916,-500.0,0.00024323,2]
[376353799,1753948245926,-548.11,0.00024343,7]
[376353801,1753948245936,-150.429748,0.00024361,4]
[376353803,1753948245945,-500.0,0.0002437,2]
[376353805,1753948245954,-500.0,0.00024383,2]
[376353807,1753948245963,-500.0,0.00024391,2]
[376353809,1753948245972,-1798.44,0.000244,7]
[376353811,1753948245981,-500.0,0.00024426,2]
[376353813,1753948245991,-500.0,0.00024431,2]
[376353815,1753948246000,-500.0,0.00024432,2]
[376353817,1753948246009,-500.0,0.00024435,2]
[376353819,1753948246018,-548.13,0.00024443,7]
[376353821,1753948246027,-500.0,0.0002445,2]
[376353823,1753948246036,-2200.0,0.00024463,2]
[376353825,1753948246045,-2410.61787485,0.00024486,11]
[376353827,1753948246055,-500.0,0.0002452,2]
[376353829,1753948246064,-500.0,0.00024535,2]
[376353831,1753948246074,-2146.0,0.00024538,2]
[376353833,1753948246083,-635.0,0.00024538,2]
[376353836,1753948246093,-500.0,0.00024539,2]
[376353838,1753948246103,-347.24860267,0.0002455,2]
[376353840,1753948246113,-500.58809478,0.00024562,2]
[376353842,1753948246123,-500.0,0.0002463,2]
[376353844,1753948246132,-160046.77002233,0.0002465,2]
[376353846,1753948246142,-502.90460746,0.0002465,2]
[376353849,1753948246152,-151.695484,0.0002465,7]
[376353851,1753948246162,-150.429748,0.0002465,8]
[376353854,1753948246171,-336.03,0.00024657,4]
[376353857,1753948246180,-336.03,0.00024657,4]
[376353860,1753948246190,-336.03,0.00024657,4]
[376353862,1753948246199,-336.03,0.00024657,4]
[376353864,1753948246208,-336.03,0.00024657,4]
[376353866,1753948246217,-336.03,0.00024657,4]
[376353868,1753948246227,-336.03,0.00024657,4]
[376353870,1753948246236,-336.03,0.00024657,4]
[376353872,1753948246245,-336.03,0.00024657,4]
[376353874,1753948246254,-336.03,0.00024657,4]
[376353876,1753948246264,-336.03,0.00024657,4]
[376353878,1753948246273,-336.03,0.00024657,4]
[376353880,1753948246282,-336.03,0.00024657,4]
[376353882,1753948246291,-336.03,0.00024657,4]
[376353884,1753948246300,-336.03,0.00024657,4]
[376353886,1753948246310,-336.03,0.00024657,4]
[376353888,1753948246319,-336.03,0.00024657,4]
[376353890,1753948246328,-336.03,0.00024657,4]
[376353892,1753948246340,-336.03,0.00024657,4]
[376353894,1753948246352,-336.03,0.00024657,4]
[376353896,1753948246361,-336.03,0.00024657,4]
[376353898,1753948246371,-460.0,0.00024657,2]
[376353900,1753948246380,-460.0,0.00024657,2]
[376353902,1753948246389,-460.0,0.00024657,2]
[376353904,1753948246398,-460.0,0.00024657,2]
[376353906,1753948246407,-460.51339619,0.00024657,2]
[376353908,1753948246417,-200.0,0.00024658,2]
[376353910,1753948246426,-200.0,0.00024658,15]
[376353912,1753948246436,-380.0,0.00024658,2]
[376353914,1753948246445,-151.0,0.00024658,2]
[376353916,1753948246454,-612.0,0.00024658,2]
[376353918,1753948246463,-500.0,0.00024661,2]
[376353920,1753948246473,-246.3,0.00024683,6]
[376353922,1753948246482,-150.429748,0.00024685,5]
[376353924,1753948246491,-28647.27199104,0.000247,2]
[376353926,1753948246503,-1666.30962179,0.000247,2]
[376353929,1753948246513,-2015.51730841,0.000247,2]
[376353931,1753948246524,-1293.46874142,0.000247,2]
[376353933,1753948246536,-444.99950906,0.000247,2]
[376353937,1753948246562,-19271.30282828,0.000247,2]
[376353939,1753948246571,-3724.7,0.000247,7]
[376353941,1753948246580,-2410.61787485,0.00024728,11]
[376353943,1753948246590,-16469.54111257,0.00024774,2]
[376353945,1753948246599,-150.429748,0.00024784,6]
[376353948,1753948246608,-500.0,0.00024797,2]
[376353951,1753948246617,-23318.23153397,0.000248,2]
[376353954,1753948246626,-5679.76702794,0.000248,2]
[376353957,1753948246636,-304.4,0.00024802,2]
[376353960,1753948246645,-500.0,0.00024826,2]
[376353963,1753948246655,-150.429748,0.0002483,15]
[376353966,1753948246664,-500.0,0.00024846,2]
[376353969,1753948246674,-500.0,0.0002489,2]
[376353972,1753948246683,-1002.31182846,0.0002489,2]
[376353975,1753948246692,-3145.41460664,0.00024891,2]
[376353978,1753948246702,-200.0,0.00024899,2]
[376353980,1753948246711,-706.93766535,0.000249,2]
[376353983,1753948246719,-151.0,0.000249,7]
[376353984,1753948246728,-151.0,0.000249,7]
[376353986,1753948246737,-151.0,0.000249,7]
[376353989,1753948246746,-151.0,0.000249,7]
[376353991,1753948246755,-151.0,0.000249,7]
[376353994,1753948246764,-151.0,0.000249,7]
[376353996,1753948246774,-151.0,0.000249,7]
[376353998,1753948246783,-151.0,0.000249,7]
[376354000,1753948246792,-63683.68859959,0.000249,2]
[376354002,1753948246803,-2266.91358463,0.000249,2]
[376354004,1753948246814,-1497.69227202,0.000249,2]
[376354006,1753948246825,-1560.65807544,0.000249,2]
[376354022,1753948246964,-460.0,0.00019178,2]
[376354024,1753948246974,-460.0,0.00019178,2]
[376354037,1753948246983,-460.0,0.00019452,2]
[376354039,1753948247096,-460.0,0.00019726,2]
[376354041,1753948247105,-526.848153,0.00021209,2]
[376354043,1753948247115,-200.0,0.00023457,15]
[376354045,1753948247124,-13.027912,0.00023457,15]
[376355820,1753948387670,172.45504494,0.00018978,2]
[376355821,1753948387731,10000.0,0.00018978,2]
[376355822,1753948387791,10000.0,0.00018978,2]
[376355823,1753948387851,10000.0,0.00018978,2]
[376355824,1753948387913,10000.0,0.00018978,2]
[376355825,1753948387973,10000.0,0.00018978,2]
[376355826,1753948388034,10000.0,0.00018978,2]
[376355827,1753948388100,10000.0,0.00018978,2]
[376355828,1753948388164,10000.0,0.00018978,2]
[376355829,1753948388231,10000.0,0.00018978,2]
[376355830,1753948388288,10000.0,0.00018978,2]
[376355831,1753948388362,10000.0,0.00018978,2]
[376355832,1753948388437,10000.0,0.00018978,2]
[376355833,1753948388497,10000.0,0.00018978,2]
[376355834,1753948388558,10000.0,0.00018978,2]
[376355835,1753948388619,10000.0,0.00018978,2]
[376355836,1753948388678,10000.0,0.00018978,2]
[376355837,1753948388736,10000.0,0.00018978,2]
[376355838,1753948388798,10000.0,0.00018978,2]
[376355839,1753948388859,10000.0,0.00018978,2]
[376355840,1753948388920,10000.0,0.00018978,2]
[376355841,1753948388980,10000.0,0.00018978,2]
[376355842,1753948389038,10000.0,0.00018978,2]
[376355843,1753948389098,10000.0,0.00018978,2]
[376355844,1753948389156,10000.0,0.00018978,2]
[376355845,1753948389215,10000.0,0.00018978,2]
[376355846,1753948389272,10000.0,0.00018978,2]
[376355847,1753948389334,10000.0,0.00018978,2]
[376355848,1753948389407,10000.0,0.00018978,2]
[376355849,1753948389467,10000.0,0.00018978,2]
[376355850,1753948389525,10000.0,0.00018978,2]